bitfinex-derivatives/quotes_SOLF0:USTF0_20250514
["timestamp","ask_amount","ask_price","bid_price","bid_amount"]
[1747181347880,5.4501,183.46,183.42,5.4509]
[1747181348076,60.2,183.51,183.42,5.4509]
[1747181348283,60.24,183.53,183.4,62.019]
[1747181348482,5.4493,183.48,183.4,62.019]
[1747181348782,5.4493,183.48,183.41,1.8816]
[1747181348980,5.4493,183.48,183.41,3.7303]
[1747181349486,5.4493,183.48,183.44,5.4503]
[1747181350185,60.24,183.53,183.48,5.4493]
[1747181350386,60.2,183.54,183.45,60.2]
[1747181350587,60.2,183.54,183.47,5.4496]
[1747181350787,60.2,183.54,183.45,60.2]
[1747181351086,60.2,183.54,183.47,5.4495]
[1747181351388,60.2,183.54,183.45,60.2]
[1747181351691,5.4483,183.52,183.48,5.4491]
[1747181351883,60.2,183.54,183.45,60.2]
[1747181352083,3.6518,183.56,183.45,60.2]
[1747181352283,5.4478,183.53,183.45,60.2]
[1747181352888,60.2,183.57,183.45,60.2]
[1747181353091,60.18,183.59,183.45,283.2]
[1747181353289,60.18,183.61,183.45,283.2]
[1747181353489,5.4471,183.56,183.45,283.2]
[1747181353989,5.4467,183.57,183.53,5.4476]
[1747181354190,60.18,183.61,183.51,60.16]
[1747181354488,5.4462,183.59,183.55,5.4472]
[1747181354686,5.4462,183.59,183.51,61.9638]
[1747181354886,60.18,183.61,183.51,61.9638]
[1747181355690,5.4473,183.55,183.51,61.9638]
[1747181355887,60.18,183.61,183.49,60.16]
[1747181356086,60.16,183.57,183.49,60.16]
[1747181356292,60.16,183.57,183.49,65.6089]
[1747181356494,60.16,183.57,183.49,60.16]
[1747181356791,5.4486,183.51,183.49,60.16]
[1747181357386,60.14,183.52,183.43,60.16]
[1747181357793,5.4486,183.51,183.43,60.16]
[1747181358092,60.14,183.52,183.43,60.16]
[1747181358394,5.4489,183.5,183.46,5.4497]
[1747181358784,5.4489,183.5,183.43,60.16]
[1747181358990,5.4489,183.5,183.46,5.4497]
[1747181359184,60.14,183.53,183.43,60.16]
[1747181359493,60.14,183.53,183.47,5.4495]
[1747181359794,5.4488,183.5,183.47,5.4495]
[1747181360196,60.14,183.53,183.47,5.4495]
[1747181360492,60.14,183.53,183.43,60.16]
[1747181361193,5.4491,183.49,183.43,60.16]
[1747181361994,5.4491,183.49,183.45,5.4501]
[1747181362394,5.4491,183.49,183.43,60.16]
[1747181362698,62.0105,183.61,183.43,60.16]
[1747181362889,60.14,183.59,183.43,283.16]
[1747181363093,5.4467,183.57,183.43,283.16]
[1747181363294,60.14,183.59,183.43,283.16]
[1747181363891,5.4473,183.55,183.43,283.16]
[1747181364296,60.14,183.59,183.43,283.16]
[1747181364495,5.4464,183.58,183.43,283.16]
[1747181364795,60.14,183.61,183.43,283.16]
[1747181364997,5.4469,183.57,183.53,5.4475]
[1747181365290,5.4469,183.57,183.53,60.14]
[1747181365498,60.14,183.61,183.53,60.14]
[1747181365796,120.28,183.61,183.49,60.14]
[1747181366094,122.0281,183.61,183.49,60.14]
[1747181366696,5.4472,183.56,183.52,5.448]
[1747181368300,120.28,183.61,183.49,60.14]
[1747181368497,120.28,183.61,183.5,5.2501]
[1747181368799,120.28,183.61,183.54,5.4475]
[1747181369296,5.4466,183.58,183.54,5.4475]
[1747181369900,5.4459,183.6,183.5,5.2501]
[1747181370402,5.4459,183.6,183.56,5.4467]
[1747181370893,5.4461,183.59,183.55,5.4471]
[1747181371091,61.8934,183.63,183.54,60.14]
[1747181371490,61.8934,183.63,183.5,1.7773]
[1747181371801,61.8934,183.63,183.48,531.08]
[1747181371802,1.8144,183.62,183.48,531.08]
[1747181372097,5.4487,183.51,183.48,60.14]
[1747181372298,60.1,183.55,183.48,60.14]
[1747181372994,5.4486,183.51,183.48,65.5893]
[1747181375607,5.4489,183.5,183.48,60.14]
[1747181376001,60.1,183.55,183.48,60.14]
[1747181376495,60.14,183.56,183.48,60.14]
[1747181376701,60.1,183.58,183.48,60.14]
[1747181377202,5.4472,183.55,183.48,60.14]
[1747181377597,60.1,183.58,183.48,60.14]
[1747181377801,5.4476,183.54,183.51,5.4482]
[1747181378998,0.94831932,183.7,183.52,531.0]
[1747181379203,1.7715,183.68,183.53,60.14]
[1747181380004,5.4454,183.62,183.53,60.14]
[1747181380501,5.4454,183.62,183.59,5.4458]
[1747181381004,5.4456,183.61,183.57,5.4464]
[1747181381205,60.08,183.67,183.57,60.12]
[1747181382507,60.08,183.67,183.59,5.4459]
[1747181382707,60.08,183.67,183.57,60.12]
[1747181383004,60.08,183.67,183.52,474.651]
[1747181383208,60.08,183.67,183.54,60.06]
[1747181383406,5.4469,183.57,183.54,60.06]
[1747181383903,5.4464,183.58,183.54,60.06]
[1747181384508,5.4464,183.58,183.55,5.4472]
[1747181384910,5.4467,183.57,183.54,60.06]
[1747181385104,60.06,183.61,183.54,60.06]
[1747181385409,5.4472,183.56,183.52,536.428]
[1747181386406,5.4472,183.56,183.53,5.4478]
[1747181386916,5.4467,183.57,183.53,5.4478]
[1747181387317,1.8062,183.6,183.53,5.4478]
[1747181388119,1.8062,183.6,183.47,1.7796]
[1747181388317,1.8062,183.6,183.48,120.1]
[1747181388516,1.8062,183.6,183.48,60.06]
[1747181388718,1.8062,183.6,183.5,5.4485]
[1747181389220,5.4481,183.53,183.49,5.4489]
[1747181389419,1.8062,183.6,183.49,5.4489]
[1747181390619,1.8062,183.6,183.45,1.7402]
[1747181390914,1.8062,183.6,183.45,60.06]
[1747181391216,1.8062,183.6,183.45,65.5099]
[1747181391518,10.8922,183.59,183.45,60.06]
[1747181392321,5.4503,183.45,183.43,470.82]
[1747181392517,5.4503,183.45,183.42,60.06]
[1747181393217,5.4507,183.44,183.4,60.06]
[1747181395123,60.04,183.51,183.4,60.06]
[1747181395623,5.45,183.46,183.42,5.4509]
[1747181395825,60.04,183.51,183.42,60.04]
[1747181396325,60.04,183.51,183.46,5.4497]
[1747181396823,5.4493,183.49,183.45,65.5302]
[1747181397026,60.04,183.51,183.45,65.5302]
[1747181397424,5.4492,183.49,183.45,65.5302]
[1747181398221,60.04,183.51,183.43,3.6196]
[1747181398425,60.04,183.51,183.42,60.08]
[1747181398626,60.04,183.51,183.41,60.08]
[1747181399028,60.04,183.51,183.41,65.5313]
[1747181399328,60.04,183.51,183.41,60.08]
[1747181399627,5.4504,183.45,183.41,65.5313]
[1747181399827,60.04,183.51,183.41,60.08]
[1747181400028,1.8608,183.5,183.41,60.08]
[1747181400230,1.8608,183.5,183.37,63.7674]
[1747181400430,1.7989,183.49,183.37,60.08]
[1747181400726,5.4518,183.4,183.37,60.08]
[1747181401418,60.02,183.44,183.37,60.08]
[1747181401823,120.1,183.48,183.37,60.08]
[1747181402128,120.12,183.48,183.4,5.4516]
[1747181403028,61.8247,183.52,183.39,60.02]
[1747181403224,60.08,183.52,183.39,69.65632967]
[1747181403732,60.02,183.53,183.43,9.63632967]
[1747181403927,60.02,183.53,183.44,125.4919]
[1747181404226,5.4489,183.5,183.44,125.4919]
[1747181404426,60.02,183.53,183.44,125.4919]
[1747181404629,5.4486,183.51,183.44,125.4919]
[1747181404823,60.02,183.53,183.47,5.4494]
[1747181405126,60.02,183.53,183.44,125.4919]
[1747181405324,5.4489,183.5,183.46,5.4497]
[1747181405632,5.4489,183.5,183.44,125.4919]
[1747181405925,60.02,183.53,183.47,5.4495]
[1747181406328,60.02,183.53,183.46,5.4499]
[1747181406529,60.02,183.53,183.44,60.08]
[1747181407325,60.02,183.53,183.39,283.08]
[1747181407526,60.02,183.53,183.39,60.08]
[1747181407728,60.02,183.53,183.4,5.4516]
[1747181407928,9.63632967,183.52,183.39,60.08]
[1747181408124,60.08,183.51,183.39,60.08]
[1747181408421,1.7765,183.5,183.39,60.08]
[1747181408727,3.5922,183.49,183.37,65.4875]
[1747181408929,5.4512,183.42,183.38,5.4522]
[1747181409429,60.0,183.48,183.39,5.4518]
[1747181409629,60.0,183.48,183.37,65.4875]
[1747181410127,5.451,183.43,183.39,5.4519]
[1747181410332,60.0,183.48,183.39,5.4519]
[1747181410732,5.4511,183.42,183.38,5.4522]
[1747181410928,60.0,183.48,183.37,63.7664]
[1747181411331,5.4504,183.45,183.41,5.4513]
[1747181411628,60.0,183.48,183.37,63.7664]
[1747181411826,60.0,183.48,183.38,5.4523]
[1747181412031,60.0,183.48,183.37,63.7664]
[1747181412436,60.0,183.48,183.37,69.2187]
[1747181414133,5.4515,183.41,183.37,69.2187]
[1747181414335,60.0,183.46,183.37,60.08]
[1747181415234,5.4526,183.38,183.34,476.3133]
[1747181415735,60.0,183.42,183.33,65.4537]
[1747181416042,60.0,183.42,183.33,60.0]
[1747181416933,60.0,183.42,183.34,5.4533]
[1747181417533,5.4525,183.38,183.34,5.4533]
[1747181417737,60.0,183.42,183.34,5.4533]
[1747181418236,5.4522,183.39,183.35,5.4531]
[1747181418433,60.0,183.42,183.35,5.4531]
[1747181418939,5.4517,183.4,183.36,5.4527]
[1747181419139,60.0,183.42,183.33,60.0]
[1747181419631,5.4534,183.35,183.33,60.0]
[1747181420230,5.4535,183.34,183.33,60.0]
[1747181420438,60.0,183.36,183.29,60.02]
[1747181420734,120.02,183.36,183.27,1.7693]
[1747181421135,5.4549,183.3,183.27,1.7693]
[1747181421337,120.02,183.36,183.27,1.7693]
[1747181421641,120.02,183.36,183.25,1.8855]
[1747181422437,5.4555,183.28,183.25,1.8855]
[1747181423538,5.4556,183.27,183.25,1.8855]
[1747181423737,60.0,183.31,183.25,1.8855]
[1747181424240,5.4552,183.29,183.25,1.8855]
[1747181424435,60.02,183.36,183.25,1.8855]
[1747181424728,60.0,183.35,183.25,1.8855]
[1747181424933,5.4544,183.32,183.27,5.4555]
[1747181425134,60.0,183.35,183.25,1.8855]
[1747181425336,5.4546,183.31,183.26,5.4556]
[1747181425535,60.0,183.35,183.25,1.8855]
[1747181425937,5.4543,183.32,183.28,5.4553]
[1747181426135,60.0,183.35,183.25,1.8855]
[1747181426738,5.4543,183.32,183.27,5.4553]
[1747181427136,60.0,183.35,183.27,5.4553]
[1747181427635,60.0,183.35,183.28,5.4551]
[1747181427838,60.0,183.35,183.25,1.8855]
[1747181428033,5.4544,183.31,183.25,1.8855]
[1747181428328,5.4544,183.31,183.27,5.4554]
[1747181428941,5.4541,183.32,183.28,5.4552]
[1747181431236,60.0,183.35,183.25,1.8855]
[1747181431437,60.02,183.36,183.26,69.63632967]
[1747181431641,5.4534,183.35,183.31,5.4542]
[1747181431836,60.0,183.38,183.29,60.04]
[1747181432142,5.4547,183.3,183.25,1.8855]
[1747181432340,60.0,183.38,183.25,61.9255]
[1747181432739,5.4539,183.33,183.29,5.4549]
[1747181432935,60.0,183.38,183.29,5.4549]
[1747181433137,60.0,183.38,183.25,61.9255]
[1747181433337,66.02915243,183.38,183.26,5.4558]
[1747181433638,66.02915243,183.38,183.25,61.9255]
[1747181433839,5.455,183.29,183.25,67.3814]
[1747181434243,60.0,183.32,183.25,61.9255]
[1747181434944,5.4555,183.28,183.25,61.9255]
[1747181435245,66.02915243,183.32,183.18,60.04]
[1747181435442,5.4159,183.31,183.18,120.04]
[1747181435743,5.4159,183.31,183.17,6.02915243]
[1747181436244,5.4569,183.23,183.19,5.4579]
[1747181437244,5.4565,183.24,183.2,5.4576]
[1747181438145,5.4562,183.25,183.21,5.4572]
[1747181438345,60.0,183.26,183.16,531.26]
[1747181438646,5.4559,183.27,183.22,5.4568]
[1747181438844,9.65326013,183.34,183.16,531.26]
[1747181438845,60.06,183.3,183.21,60.06]
[1747181439050,60.06,183.3,183.22,61.8318]
[1747181439245,5.4556,183.27,183.23,5.4567]
[1747181439742,60.06,183.3,183.22,61.8318]
[1747181440443,5.4558,183.27,183.22,61.8318]
[1747181440642,60.06,183.3,183.22,61.8318]
[1747181440948,5.4552,183.29,183.25,5.456]
[1747181441448,5.4548,183.3,183.26,5.4558]
[1747181441649,60.0,183.31,183.26,5.4558]
[1747181442943,5.455,183.29,183.26,5.4558]
[1747181444348,5.455,183.29,183.22,61.8318]
[1747181444349,65.4544,183.31,183.28,5.4553]
[1747181444652,60.06,183.34,183.22,61.8318]
[1747181444653,59.98,183.35,183.22,71.48506013]
[1747181444849,5.4539,183.33,183.29,5.4547]
[1747181445043,5.4539,183.33,183.27,59.98]
[1747181445750,119.96,183.36,183.27,59.98]
[1747181447052,59.98,183.36,183.27,59.98]
[1747181447953,5.4542,183.32,183.28,5.455]
[1747181448351,59.98,183.36,183.28,5.455]
[1747181448554,5.4543,183.32,183.28,5.455]
[1747181449555,59.98,183.36,183.27,59.98]
[1747181450051,5.4535,183.34,183.3,5.4544]
[1747181450451,59.98,183.36,183.3,5.4544]
[1747181450657,59.98,183.4,183.33,5.4537]
[1747181450853,59.98,183.4,183.27,59.98]
[1747181451158,119.94,183.4,183.28,1.851]
[1747181451657,125.3918,183.4,183.28,1.851]
[1747181451957,125.3918,183.4,183.29,1.8582]
[1747181452157,125.3918,183.4,183.3,61.7181]
[1747181452358,5.4514,183.42,183.3,61.7181]
[1747181452559,59.96,183.42,183.3,61.7181]
[1747181452960,5.4515,183.41,183.36,5.4529]
[1747181454460,59.96,183.42,183.37,5.4525]
[1747181454461,65.4112,183.42,183.37,5.4525]
[1747181454660,5.4512,183.42,183.37,5.4525]
[1747181454857,59.98,183.44,183.33,59.98]
[1747181455061,5.4509,183.43,183.38,5.4521]
[1747181455658,65.4306,183.44,183.38,5.4521]
[1747181455862,59.98,183.44,183.35,59.96]
[1747181456059,59.96,183.45,183.36,1.8666]
[1747181456257,61.8404,183.48,183.36,1.8666]
[1747181456457,119.9,183.48,183.37,1.7205]
[1747181456658,119.9,183.48,183.38,59.96]
[1747181456957,5.4497,183.47,183.42,5.4509]
[1747181457658,5.4499,183.46,183.41,5.4513]
[1747181458163,61.823,183.49,183.38,61.8017]
[1747181458366,6.01823793,183.46,183.38,59.96]
[1747181458565,1.8475,183.45,183.38,59.96]
[1747181458755,5.4516,183.41,183.38,59.96]
[1747181459765,59.94,183.44,183.38,59.96]
[1747181460860,5.4518,183.4,183.38,59.96]
[1747181461362,59.94,183.44,183.36,59.94]
[1747181462263,59.96,183.47,183.36,59.94]
[1747181462462,59.92,183.48,183.36,59.94]
[1747181462662,59.92,183.48,183.4,5.4516]
[1747181462862,59.92,183.48,183.4,59.96]
[1747181463567,59.92,183.48,183.41,5.4512]
[1747181463764,61.7,183.51,183.4,59.96]
[1747181463967,59.96,183.51,183.41,59.92]
[1747181464168,5.4488,183.5,183.45,5.45]
[1747181464368,59.92,183.52,183.41,65.4418]
[1747181464765,5.4487,183.51,183.41,65.4418]
[1747181465263,5.4487,183.51,183.46,5.4499]
[1747181465478,5.4487,183.51,183.45,59.94]
[1747181466170,1.7966,183.54,183.45,59.94]
[1747181466171,5.4481,183.53,183.45,59.94]
[1747181466373,3.4808,183.57,183.46,59.9]
[1747181466871,5.4475,183.55,183.5,5.4485]
[1747181467074,5.4475,183.55,183.5,65.3885]
[1747181467371,5.4475,183.55,183.5,59.94]
[1747181467980,5.4475,183.55,183.5,65.3886]
[1747181468977,5.447,183.56,183.51,5.4484]
[1747181469575,5.4467,183.57,183.52,5.4481]
[1747181469777,59.94,183.65,183.51,59.88]
[1747181469974,61.8198,183.65,183.51,65.3339]
[1747181470274,61.7998,183.65,183.51,65.3339]
[1747181470466,59.88,183.64,183.51,65.3339]
[1747181471474,5.4449,183.63,183.57,5.4464]
[1747181471770,9.63792388,183.7,183.57,5.4464]
[1747181471771,111.86907199,183.74,183.57,59.86]
[1747181471968,3.6426,183.71,183.57,59.86]
[1747181472171,5.4437,183.67,183.61,5.4454]
[1747181472575,5.4434,183.68,183.62,5.4451]
[1747181472876,59.86,183.69,183.62,65.3051]
[1747181473372,59.86,183.69,183.62,119.72]
[1747181473574,3.6426,183.71,183.62,119.72]
[1747181473774,121.4866,183.73,183.62,119.72]
[1747181474276,59.84,183.72,183.62,119.72]
[1747181474676,59.84,183.72,183.6,1.7693]
[1747181474973,59.84,183.72,183.59,61.5527]
[1747181475576,5.4437,183.67,183.6,5.4457]
[1747181476471,61.6266,183.73,183.59,61.5527]
[1747181476676,102.23114811,183.74,183.6,1.7658]
[1747181477472,65.2267,183.76,183.61,9.63792388]
[1747181477673,5.3867,183.76,183.61,9.63792388]
[1747181479082,5.442,183.73,183.66,5.4437]
[1747181479378,5.442,183.73,183.67,59.82]
[1747181479682,5.4417,183.74,183.67,59.82]
[1747181479875,5.3867,183.76,183.67,59.82]
[1747181480077,59.82,183.78,183.67,59.82]
[1747181480576,59.82,183.78,183.67,61.5379]
[1747181481174,59.82,183.82,183.67,61.5379]
[1747181481374,59.8,183.81,183.68,1.8339]
[1747181481681,5.4403,183.79,183.73,5.4418]
[1747181481979,59.8,183.81,183.73,59.82]
[1747181482174,5.4415,183.75,183.68,7.2771]
[1747181482480,59.8,183.81,183.68,61.6539]
[1747181482879,5.4417,183.74,183.68,65.2634]
[1747181483282,59.78,183.76,183.67,59.8]
[1747181483578,1.8742,183.75,183.67,59.8]
[1747181484379,59.8,183.77,183.67,59.8]
[1747181484380,119.58,183.77,183.67,59.8]
[1747181485075,5.4412,183.76,183.7,5.4428]
[1747181485481,5.4413,183.75,183.69,5.443]
[1747181485980,5.4423,183.72,183.67,59.8]
[1747181486377,3.6269,183.76,183.67,59.8]
[1747181486577,1.777,183.75,183.67,59.8]
[1747181486882,5.4427,183.71,183.65,5.4442]
[1747181487178,1.777,183.75,183.61,1.7839]
[1747181487179,119.56,183.72,183.61,1.7839]
[1747181487486,119.56,183.72,183.61,59.8]
[1747181487784,119.56,183.72,183.58,59.8]
[1747181487985,119.56,183.72,183.61,5.4455]
[1747181488678,5.444,183.66,183.6,5.4457]
[1747181489072,119.56,183.72,183.58,59.8]
[1747181489277,5.4437,183.68,183.58,59.8]
[1747181489774,5.4431,183.69,183.58,59.8]
[1747181489979,59.76,183.71,183.58,59.8]
[1747181490380,65.2027,183.71,183.64,5.4444]
[1747181490582,65.2027,183.71,183.63,59.8]
[1747181490886,5.4429,183.7,183.64,5.4443]
[1747181491089,5.4429,183.7,183.63,59.8]
[1747181492382,5.4432,183.69,183.63,59.8]
[1747181492578,59.8,183.73,183.64,5.4445]
[1747181493285,5.4429,183.7,183.64,5.4445]
[1747181494083,59.8,183.73,183.65,5.4442]
[1747181494084,5.4426,183.71,183.65,5.4442]
[1747181494275,59.8,183.73,183.63,59.8]
[1747181494479,5.4417,183.74,183.68,5.4431]
[1747181494675,3.6269,183.76,183.69,59.78]
[1747181495080,3.6269,183.76,183.69,65.223]
[1747181495988,5.4417,183.74,183.69,65.223]
[1747181496394,3.6269,183.76,183.69,65.223]
[1747181496686,5.4414,183.75,183.69,65.223]
[1747181498288,5.4411,183.76,183.7,5.4428]
[1747181498679,5.4411,183.76,183.69,59.78]
[1747181498886,5.4408,183.77,183.69,59.78]
[1747181499083,108.41571461,183.8,183.69,59.78]
[1747181499389,59.74,183.82,183.76,5.441]
[1747181499586,5.4398,183.81,183.76,5.441]
[1747181500088,5.4396,183.81,183.76,5.441]
[1747181500391,59.72,183.84,183.75,65.2213]
[1747181500688,5.4396,183.81,183.75,65.2213]
[1747181500889,59.72,183.84,183.75,59.78]
[1747181501090,59.72,183.84,183.73,5.4417]
[1747181501389,59.72,183.84,183.72,59.78]
[1747181501989,5.4399,183.8,183.74,5.4416]
[1747181502187,530.64,183.85,183.72,59.78]
[1747181502387,59.72,183.84,183.72,59.78]
[1747181502586,470.86,183.85,183.72,59.78]
[1747181502787,59.72,183.84,183.72,63.2623]
[1747181503494,5.4395,183.81,183.72,63.2623]
[1747181503692,59.72,183.84,183.73,59.7]
[1747181503890,59.72,183.84,183.72,63.1823]
[1747181504593,5.4396,183.81,183.75,5.4411]
[1747181505494,5.4399,183.8,183.74,5.4416]
[1747181505792,59.72,183.84,183.72,63.1823]
[1747181506588,5.4415,183.75,183.69,65.1429]
[1747181506786,5.4415,183.75,183.69,59.7]
[1747181507190,5.4418,183.74,183.69,59.7]
[1747181507995,61.5491,183.78,183.69,59.7]
[1747181508392,5.4418,183.74,183.69,59.7]
[1747181509195,61.5491,183.78,183.69,59.7]
[1747181509597,61.5491,183.78,183.64,7.1643]
[1747181509895,61.5491,183.78,183.65,59.7]
[1747181510295,5.4414,183.75,183.69,5.4428]
[1747181510595,61.5491,183.78,183.66,3.434]
[1747181510997,5.4414,183.75,183.66,3.434]
[1747181511196,5.4414,183.75,183.69,5.4429]
[1747181511497,5.4414,183.75,183.67,59.68]
[1747181511795,5.4417,183.74,183.67,59.68]
[1747181512000,61.5491,183.78,183.67,59.68]
[1747181512490,5.4419,183.74,183.66,63.134]
[1747181513192,61.5491,183.78,183.66,63.134]
[1747181513697,5.4412,183.76,183.71,5.4424]
[1747181514197,5.4417,183.74,183.66,63.134]
[1747181514395,61.5491,183.78,183.66,63.134]
[1747181514895,61.5491,183.78,183.68,5.4431]
[1747181515498,61.5491,183.78,183.66,61.4109]
[1747181516399,61.5491,183.78,183.66,66.8547]
[1747181516598,61.5491,183.78,183.66,61.4109]
[1747181517099,59.68,183.77,183.66,61.4109]
[1747181517500,59.68,183.77,183.69,5.443]
[1747181518004,5.4419,183.74,183.69,5.443]
[1747181518297,61.5291,183.78,183.66,71.04882388]
[1747181518600,5.4412,183.76,183.66,71.04882388]
[1747181518802,5.4412,183.76,183.71,5.4424]
[1747181519301,61.5291,183.78,183.66,1.7109]
[1747181519598,61.5291,183.78,183.66,61.4109]
[1747181520197,5.4411,183.76,183.66,61.4109]
[1747181520396,61.5291,183.78,183.66,61.4109]
[1747181520801,1.8491,183.78,183.66,61.4109]
[1747181520999,59.68,183.82,183.66,61.4109]
[1747181521502,5.4403,183.79,183.66,61.4109]
[1747181521803,59.68,183.82,183.66,61.4109]
[1747181521999,59.68,183.82,183.71,5.4424]
[1747181522205,59.68,183.82,183.68,59.72]
[1747181522903,59.68,183.82,183.71,5.4424]
[1747181523103,59.68,183.82,183.68,59.72]
[1747181523299,9.63792388,183.81,183.68,5.4432]
[1747181523599,9.63792388,183.81,183.67,59.7]
[1747181523803,5.4409,183.77,183.67,59.7]
[1747181524004,59.96,183.76,183.67,59.7]
[1747181524604,65.401,183.76,183.7,5.4425]
[1747181524806,65.401,183.76,183.67,59.7]
[1747181525206,5.4414,183.75,183.7,5.4426]
[1747181525406,59.96,183.76,183.67,59.7]
[1747181525812,5.4414,183.75,183.69,5.443]
[1747181526312,59.96,183.76,183.68,5.4433]
[1747181526313,5.4416,183.74,183.68,5.4433]
[1747181526705,5.4416,183.74,183.67,59.7]
[1747181527514,5.4414,183.75,183.69,5.443]
[1747181527909,5.4422,183.72,183.67,59.7]
[1747181528116,59.8,183.71,183.64,59.7]
[1747181528512,59.8,183.71,183.65,5.4442]
[1747181529018,5.4435,183.68,183.64,59.7]
[1747181529316,59.8,183.71,183.64,59.7]
[1747181530419,59.8,183.74,183.64,59.7]
[1747181530609,59.8,183.74,183.65,59.82]
[1747181531015,69.43792388,183.74,183.6,223.0]
[1747181531321,5.4439,183.67,183.61,5.4453]
[1747181531510,65.3839,183.67,183.61,5.4453]
[1747181531716,59.94,183.67,183.61,5.4453]
[1747181531919,59.94,183.67,183.59,61.5332]
[1747181532220,59.94,183.67,183.59,59.7]
[1747181532421,5.4442,183.66,183.59,59.7]
[1747181532623,59.94,183.67,183.59,59.7]
[1747181533019,65.3838,183.67,183.59,59.7]
[1747181533222,59.94,183.67,183.59,59.7]
[1747181533525,5.4442,183.66,183.59,59.7]
[1747181533718,59.94,183.67,183.59,59.7]
[1747181534019,5.4444,183.65,183.59,65.1458]
[1747181534214,59.94,183.67,183.59,5.4458]
[1747181534414,59.94,183.67,183.57,60.0]
[1747181535827,5.4451,183.63,183.57,5.4466]
[1747181536023,59.9,183.62,183.57,5.4466]
[1747181536422,65.3453,183.62,183.56,5.4469]
[1747181536625,59.9,183.62,183.54,60.0]
[1747181538023,65.3452,183.62,183.57,5.4466]
[1747181538626,59.9,183.62,183.54,60.0]
[1747181539831,59.9,183.62,183.44,60.02]
[1747181539832,9.63792388,183.59,183.44,60.02]
[1747181540033,63.6141,183.58,183.44,60.02]
[1747181540230,60.32,183.57,183.44,60.02]
[1747181540835,60.32,183.57,183.47,5.4496]
[1747181541036,60.32,183.57,183.44,60.02]
[1747181541526,5.4476,183.54,183.48,5.4493]
[1747181542432,60.24,183.53,183.49,5.4489]
[1747181543328,60.2,183.57,183.46,60.2]
[1747181543632,60.2,183.57,183.47,3.5157]
[1747181544025,60.2,183.57,183.54,5.4474]
[1747181545030,60.2,183.57,183.55,5.4471]
[1747181545229,60.2,183.57,183.49,60.02]
[1747181545536,60.02,183.59,183.49,60.02]
[1747181545731,5.4458,183.6,183.49,60.02]
[1747181546829,60.06,183.61,183.49,60.02]
[1747181547323,60.06,183.61,183.48,1.7498]
[1747181547527,60.06,183.61,183.48,61.7898]
[1747181547932,9.63792388,183.59,183.47,1.7981]
[1747181548132,5.4467,183.57,183.47,1.7981]
[1747181548334,60.04,183.58,183.47,1.7981]